[Event "Betsys MČR v online bleskovém šachu 2021"]
[Site "Chess.com"]
[Date "2021.04.17"]
[Round "5"]
[White "Cimrman"]
[Black "Tolja1"]
[Result "1-0"]
[WhiteElo "2340"]
[BlackElo "2038"]
[TimeControl "180+1"]
[EndTime "9:49:04 PDT"]
[Termination "Uživatel Cimrman zvítězil na čas"]

1. d4 {[%clk 0:03:00.9]} 1... e6 {[%clk 0:02:59.2]} 2. Nf3 {[%clk 0:02:57.6]}
2... f5 {[%clk 0:02:58.8]} 3. g3 {[%clk 0:02:55.5]} 3... Nf6 {[%clk 0:02:58.2]}
4. Bg2 {[%clk 0:02:55.7]} 4... d5 {[%clk 0:02:57.7]} 5. O-O {[%clk 0:02:55.3]}
5... Bd6 {[%clk 0:02:57.9]} 6. b3 {[%clk 0:02:48]} 6... Qe7 {[%clk 0:02:57.1]}
7. Bb2 {[%clk 0:02:47.8]} 7... O-O {[%clk 0:02:56.5]} 8. Ne5 {[%clk 0:02:46.9]}
8... c6 {[%clk 0:02:55.2]} 9. c4 {[%clk 0:02:43.9]} 9... Nbd7 {[%clk 0:02:53.6]}
10. Nd2 {[%clk 0:02:39.7]} 10... Ne4 {[%clk 0:02:50.4]} 11. e3 {[%clk
0:02:22.2]} 11... Ndf6 {[%clk 0:02:43.8]} 12. f4 {[%clk 0:02:11.3]} 12... Bd7
{[%clk 0:02:40.7]} 13. Nxe4 {[%clk 0:02:05]} 13... Nxe4 {[%clk 0:02:40]} 14.
Bxe4 {[%clk 0:02:04]} 14... fxe4 {[%clk 0:02:35]} 15. a4 {[%clk 0:01:53.8]}
15... a5 {[%clk 0:02:34.2]} 16. Qc1 {[%clk 0:01:45.3]} 16... Bxe5 {[%clk
0:02:24.2]} 17. dxe5 {[%clk 0:01:46.2]} 17... Qf7 {[%clk 0:02:13.4]} 18. cxd5
{[%clk 0:01:41.1]} 18... exd5 {[%clk 0:02:11.5]} 19. Bd4 {[%clk 0:01:36.1]}
19... Bh3 {[%clk 0:02:03.2]} 20. Rf2 {[%clk 0:01:35.8]} 20... Qe6 {[%clk
0:01:57.4]} 21. Qc5 {[%clk 0:01:29.6]} 21... g5 {[%clk 0:01:52.1]} 22. Raa2
{[%clk 0:01:20.3]} 22... Rf7 {[%clk 0:01:45.9]} 23. Qd6 {[%clk 0:01:01.9]} 23...
Qxd6 {[%clk 0:01:37.1]} 24. exd6 {[%clk 0:01:02.8]} 24... gxf4 {[%clk
0:01:01.4]} 25. Rxf4 {[%clk 0:01:03.7]} 25... Rxf4 {[%clk 0:00:52.8]} 26. exf4
{[%clk 0:01:04.6]} 26... Kf7 {[%clk 0:00:47.8]} 27. Kf2 {[%clk 0:01:02.9]} 27...
Ke6 {[%clk 0:00:47.1]} 28. Be5 {[%clk 0:00:58]} 28... h5 {[%clk 0:00:46.2]} 29.
Ke3 {[%clk 0:00:46.6]} 29... Ra6 {[%clk 0:00:43.2]} 30. Rc2 {[%clk 0:00:29.2]}
30... Rb6 {[%clk 0:00:39.4]} 31. Rc3 {[%clk 0:00:29.2]} 31... Bg4 {[%clk
0:00:32.1]} 32. Kd2 {[%clk 0:00:20.1]} 32... Bh3 {[%clk 0:00:23.3]} 33. Kc2
{[%clk 0:00:19]} 33... Bg4 {[%clk 0:00:20.3]} 34. Rc5 {[%clk 0:00:18.9]} 34...
Ra6 {[%clk 0:00:19]} 35. Kc3 {[%clk 0:00:17.8]} 35... Bd1 {[%clk 0:00:18.3]} 36.
b4 {[%clk 0:00:15.5]} 36... axb4+ {[%clk 0:00:17.9]} 37. Kxb4 {[%clk 0:00:14.8]}
37... Rxa4+ {[%clk 0:00:17.7]} 38. Kc3 {[%clk 0:00:14.7]} 38... Ra6 {[%clk
0:00:16.9]} 39. h3 {[%clk 0:00:11.5]} 39... Bf3 {[%clk 0:00:16]} 40. Kd2 {[%clk
0:00:10.8]} 40... Bg2 {[%clk 0:00:16]} 41. g4 {[%clk 0:00:09.7]} 41... Bxh3
{[%clk 0:00:15.5]} 42. gxh5 {[%clk 0:00:08.9]} 42... Bg4 {[%clk 0:00:15.4]} 43.
h6 {[%clk 0:00:08.6]} 43... Ra2+ {[%clk 0:00:15.3]} 44. Ke3 {[%clk 0:00:06.8]}
44... Rh2 {[%clk 0:00:13.7]} 45. Bg7 {[%clk 0:00:04.3]} 45... Kxd6 {[%clk
0:00:12.7]} 46. Rc1 {[%clk 0:00:04]} 46... b6 {[%clk 0:00:11.7]} 47. Rg1 {[%clk
0:00:03.6]} 47... Bf5 {[%clk 0:00:10.5]} 48. Rg5 {[%clk 0:00:02.9]} 48... Ke6
{[%clk 0:00:09.8]} 49. Rg1 {[%clk 0:00:01.9]} 49... c5 {[%clk 0:00:09.3]} 50.
Rc1 {[%clk 0:00:02.8]} 50... d4+ {[%clk 0:00:09.4]} 51. Bxd4 {[%clk 0:00:02.7]}
51... cxd4+ {[%clk 0:00:09.2]} 52. Kxd4 {[%clk 0:00:03.6]} 52... Rd2+ {[%clk
0:00:03.5]} 53. Ke3 {[%clk 0:00:03.3]} 53... Rd6 {[%clk 0:00:03.3]} 54. Ke2
{[%clk 0:00:04.2]} 54... Kf6 {[%clk 0:00:03]} 55. Ke3 {[%clk 0:00:05.1]} 55...
Kg6 {[%clk 0:00:03.3]} 56. Rh1 {[%clk 0:00:05.6]} 56... Rd7 {[%clk 0:00:02.5]}
57. Rh2 {[%clk 0:00:05.1]} 57... Rh7 {[%clk 0:00:02.1]} 58. Rb2 {[%clk
0:00:05.6]} 58... Rxh6 {[%clk 0:00:01.6]} 59. Rxb6+ {[%clk 0:00:06.5]} 59... Kh5
{[%clk 0:00:01.6]} 60. Rb5 {[%clk 0:00:06.5]} 60... Kg4 {[%clk 0:00:01.6]} 61.
Re5 {[%clk 0:00:06]} 61... Rh3+ {[%clk 0:00:01.3]} 62. Kd4 {[%clk 0:00:05.5]}
62... Kxf4 {[%clk 0:00:02.2]} 63. Kc4 {[%clk 0:00:06.4]} 63... e3 {[%clk
0:00:01.8]} 64. Re7 {[%clk 0:00:06]} 64... Rh2 {[%clk 0:00:01.6]} 65. Kc3 {[%clk
0:00:05.5]} 65... Rd2 {[%clk 0:00:01.7]} 66. Rf7 {[%clk 0:00:05]} 66... Rd8
{[%clk 0:00:01.3]} 67. Re7 {[%clk 0:00:03.9]} 1-0

[Event "Betsys MČR v online bleskovém šachu 2021"]
[Site "Chess.com"]
[Date "2021.04.17"]
[Round "5"]
[White "TheFr0zenSun"]
[Black "kubaches123"]
[Result "1/2-1/2"]
[WhiteElo "2241"]
[BlackElo "2027"]
[TimeControl "180+1"]
[EndTime "9:49:09 PDT"]
[Termination "Remíza opakováním pozice"]

1. d4 {[%clk 0:03:00.9]} 1... Nf6 {[%clk 0:02:59.6]} 2. Nf3 {[%clk 0:02:59.9]}
2... e6 {[%clk 0:02:59.6]} 3. Bf4 {[%clk 0:02:59]} 3... d5 {[%clk 0:02:59.3]} 4.
e3 {[%clk 0:02:56.8]} 4... Bd6 {[%clk 0:02:59.5]} 5. Bg3 {[%clk 0:02:55.9]} 5...
O-O {[%clk 0:02:59.2]} 6. Nbd2 {[%clk 0:02:55.2]} 6... c5 {[%clk 0:02:59.2]} 7.
c3 {[%clk 0:02:55]} 7... b6 {[%clk 0:02:59.4]} 8. Bd3 {[%clk 0:02:36]} 8... Bb7
{[%clk 0:02:53.3]} 9. Qc2 {[%clk 0:02:34.5]} 9... Qc7 {[%clk 0:02:40.9]} 10. Ne5
{[%clk 0:02:24.6]} 10... Nbd7 {[%clk 0:02:37.8]} 11. f4 {[%clk 0:02:22.3]} 11...
c4 {[%clk 0:02:23.8]} 12. Be2 {[%clk 0:02:14.6]} 12... b5 {[%clk 0:02:23.8]} 13.
a3 {[%clk 0:01:59.6]} 13... Ne4 {[%clk 0:02:19.7]} 14. Nxe4 {[%clk 0:01:55.6]}
14... dxe4 {[%clk 0:02:20.6]} 15. O-O {[%clk 0:01:52.3]} 15... f6 {[%clk
0:01:49.6]} 16. Nxd7 {[%clk 0:01:46.7]} 16... Qxd7 {[%clk 0:01:50.5]} 17. Bg4
{[%clk 0:01:41.9]} 17... f5 {[%clk 0:01:50]} 18. Be2 {[%clk 0:01:41.8]} 18...
Bd5 {[%clk 0:01:49.9]} 19. Kh1 {[%clk 0:01:41]} 19... a5 {[%clk 0:01:49.5]} 20.
Bh4 {[%clk 0:01:39.1]} 20... Rab8 {[%clk 0:01:28.1]} 21. g4 {[%clk 0:01:13.5]}
21... g6 {[%clk 0:01:15.2]} 22. gxf5 {[%clk 0:01:07.9]} 22... exf5 {[%clk
0:01:14.6]} 23. Rg1 {[%clk 0:00:52.8]} 23... Kh8 {[%clk 0:00:40.8]} 24. Be1
{[%clk 0:00:47.7]} 24... Qc6 {[%clk 0:00:36.7]} 25. h4 {[%clk 0:00:46.5]} 25...
Be7 {[%clk 0:00:28.8]} 26. h5 {[%clk 0:00:41.7]} 26... gxh5 {[%clk 0:00:27.9]}
27. Bxh5 {[%clk 0:00:40.1]} 27... Qh6 {[%clk 0:00:27.3]} 28. Qh2 {[%clk
0:00:39.1]} 28... Rg8 {[%clk 0:00:26.4]} 29. Bf2 {[%clk 0:00:33.7]} 29... Bf6
{[%clk 0:00:24.2]} 30. Rxg8+ {[%clk 0:00:29.1]} 30... Rxg8 {[%clk 0:00:25.1]}
31. Rg1 {[%clk 0:00:28.3]} 31... Rxg1+ {[%clk 0:00:25.3]} 32. Kxg1 {[%clk
0:00:27.7]} 32... Be7 {[%clk 0:00:20.3]} 33. Bd1 {[%clk 0:00:26.8]} 33... Qxh2+
{[%clk 0:00:15.4]} 34. Kxh2 {[%clk 0:00:26.6]} 34... Kg7 {[%clk 0:00:15]} 35.
Be1 {[%clk 0:00:25]} 35... Kg6 {[%clk 0:00:14.9]} 36. Kh3 {[%clk 0:00:23.9]}
36... h6 {[%clk 0:00:13.3]} 37. Bh4 {[%clk 0:00:20.8]} 37... Bd6 {[%clk
0:00:13.4]} 38. Bd8 {[%clk 0:00:20.4]} 38... b4 {[%clk 0:00:13.7]} 39. axb4
{[%clk 0:00:15.4]} 39... axb4 {[%clk 0:00:14.6]} 40. Ba5 {[%clk 0:00:15.3]}
40... bxc3 {[%clk 0:00:14.3]} 41. Bxc3 {[%clk 0:00:15.3]} 41... Be7 {[%clk
0:00:13.1]} 42. Be2 {[%clk 0:00:15.6]} 42... Kf7 {[%clk 0:00:12.8]} 43. Bf1
{[%clk 0:00:15.9]} 43... Ke8 {[%clk 0:00:12.7]} 44. Be2 {[%clk 0:00:12.5]} 44...
Be6 {[%clk 0:00:13]} 45. Bd1 {[%clk 0:00:12.1]} 45... Kd7 {[%clk 0:00:13.3]} 46.
Ba4+ {[%clk 0:00:10.5]} 46... Kc7 {[%clk 0:00:13.8]} 47. Be1 {[%clk 0:00:09.4]}
47... Kb6 {[%clk 0:00:13.3]} 48. Bh4 {[%clk 0:00:09.2]} 48... Bb4 {[%clk
0:00:12.9]} 49. Bf2 {[%clk 0:00:07.5]} 49... Bd2 {[%clk 0:00:13.1]} 50. Kh4
{[%clk 0:00:07]} 50... Bc1 {[%clk 0:00:13.6]} 51. Kh5 {[%clk 0:00:05.1]} 51...
Bxb2 {[%clk 0:00:14]} 52. Kxh6 {[%clk 0:00:05.6]} 52... c3 {[%clk 0:00:12]} 53.
Kg6 {[%clk 0:00:04.8]} 53... Ka5 {[%clk 0:00:11.9]} 54. Bc2 {[%clk 0:00:04.8]}
54... Kb4 {[%clk 0:00:12]} 55. Kf6 {[%clk 0:00:05.1]} 55... Bb3 {[%clk
0:00:11.9]} 56. Bb1 {[%clk 0:00:02.6]} 56... c2 {[%clk 0:00:10.1]} 57. Bxc2
{[%clk 0:00:02.7]} 57... Bxc2 {[%clk 0:00:11]} 58. Kxf5 {[%clk 0:00:03.4]} 58...
Kc4 {[%clk 0:00:11.9]} 59. Ke5 {[%clk 0:00:03.5]} 59... Ba3 {[%clk 0:00:11.7]}
60. f5 {[%clk 0:00:04.4]} 60... Ba4 {[%clk 0:00:09.7]} 61. f6 {[%clk 0:00:05.3]}
61... Bc6 {[%clk 0:00:09.7]} 62. f7 {[%clk 0:00:04.4]} 62... Kd3 {[%clk
0:00:10.2]} 63. Ke6 {[%clk 0:00:03.3]} 63... Ke2 {[%clk 0:00:10.3]} 64. Bg1
{[%clk 0:00:01.9]} 64... Kf1 {[%clk 0:00:10.5]} 65. Bh2 {[%clk 0:00:02.2]} 65...
Bf8 {[%clk 0:00:11]} 66. Bd6 {[%clk 0:00:02.4]} 66... Bh6 {[%clk 0:00:11.2]} 67.
Bf4 {[%clk 0:00:01.4]} 67... Bf8 {[%clk 0:00:10.3]} 68. Bd6 {[%clk 0:00:01.6]}
68... Bg7 {[%clk 0:00:10.2]} 69. Be5 {[%clk 0:00:01.8]} 69... Bf8 {[%clk
0:00:10]} 70. Bd6 {[%clk 0:00:02.3]} 1/2-1/2

[Event "Betsys MČR v online bleskovém šachu 2021"]
[Site "Chess.com"]
[Date "2021.04.17"]
[Round "5"]
[White "mravecuk"]
[Black "HCMotorCB"]
[Result "0-1"]
[WhiteElo "2256"]
[BlackElo "2385"]
[TimeControl "180+1"]
[EndTime "9:49:14 PDT"]
[Termination "Uživatel HCMotorCB zvítězil po vzdání soupeře"]

1. d4 {[%clk 0:02:40.5]} 1... d5 {[%clk 0:02:59.1]} 2. Nc3 {[%clk 0:02:39.3]}
2... Nf6 {[%clk 0:02:59.2]} 3. Bf4 {[%clk 0:02:35.3]} 3... c6 {[%clk 0:02:50.9]}
4. e3 {[%clk 0:02:31.9]} 4... Bf5 {[%clk 0:02:50]} 5. f3 {[%clk 0:02:32.1]} 5...
e6 {[%clk 0:02:49.6]} 6. g4 {[%clk 0:02:32.1]} 6... Bg6 {[%clk 0:02:49.1]} 7. h4
{[%clk 0:02:32.6]} 7... h5 {[%clk 0:02:49]} 8. g5 {[%clk 0:02:33]} 8... Ng8
{[%clk 0:02:48]} 9. Bd3 {[%clk 0:02:33.6]} 9... Ne7 {[%clk 0:02:47.9]} 10. Nge2
{[%clk 0:02:32.2]} 10... Qb6 {[%clk 0:02:43.8]} 11. Bxg6 {[%clk 0:02:29.2]}
11... Nxg6 {[%clk 0:02:41.9]} 12. Qd3 {[%clk 0:02:29.6]} 12... Nd7 {[%clk
0:02:39.6]} 13. O-O-O {[%clk 0:02:28.1]} 13... c5 {[%clk 0:02:35.1]} 14. dxc5
{[%clk 0:02:21.3]} 14... Nxc5 {[%clk 0:02:34.1]} 15. Qb5+ {[%clk 0:02:21.3]}
15... Nd7 {[%clk 0:02:12.3]} 16. Qxb6 {[%clk 0:01:41.8]} 16... Nxb6 {[%clk
0:02:09.6]} 17. Bg3 {[%clk 0:01:41.2]} 17... a6 {[%clk 0:02:07.2]} 18. e4 {[%clk
0:01:38.4]} 18... dxe4 {[%clk 0:01:55.9]} 19. Nxe4 {[%clk 0:01:36.7]} 19... Be7
{[%clk 0:01:54]} 20. Nd6+ {[%clk 0:01:24.2]} 20... Bxd6 {[%clk 0:01:52.9]} 21.
Bxd6 {[%clk 0:01:24.7]} 21... Rc8 {[%clk 0:01:51.1]} 22. b3 {[%clk 0:01:19.9]}
22... Nd5 {[%clk 0:01:43.3]} 23. c4 {[%clk 0:01:14.5]} 23... Ne3 {[%clk
0:01:37.7]} 24. Rd3 {[%clk 0:01:09.5]} 24... Nf5 {[%clk 0:01:37.3]} 25. Ba3
{[%clk 0:01:01.7]} 25... Ngxh4 {[%clk 0:01:35.2]} 26. Nf4 {[%clk 0:00:51]} 26...
g6 {[%clk 0:01:20.3]} 27. Rhd1 {[%clk 0:00:27.4]} 27... b5 {[%clk 0:01:16.2]}
28. Bb2 {[%clk 0:00:25.7]} 28... O-O {[%clk 0:01:13.7]} 29. Rc3 {[%clk
0:00:15.2]} 29... bxc4 {[%clk 0:01:11.6]} 30. bxc4 {[%clk 0:00:15.4]} 30... Rc6
{[%clk 0:01:10.1]} 31. c5 {[%clk 0:00:13.3]} 31... Rfc8 {[%clk 0:01:07.1]} 32.
Ba3 {[%clk 0:00:12.6]} 32... Ne7 {[%clk 0:00:58.7]} 33. Kb2 {[%clk 0:00:10.5]}
33... Nhf5 {[%clk 0:00:58.5]} 34. Rcd3 {[%clk 0:00:08]} 34... Kg7 {[%clk
0:00:46]} 35. Kb3 {[%clk 0:00:08.2]} 35... Rb8+ {[%clk 0:00:44]} 36. Ka4 {[%clk
0:00:07.2]} 36... Rb5 {[%clk 0:00:39.7]} 37. Bb4 {[%clk 0:00:06.9]} 37... Rbxc5
{[%clk 0:00:32.3]} 38. Bxc5 {[%clk 0:00:07.1]} 38... Rxc5 {[%clk 0:00:32.8]} 39.
Kb4 {[%clk 0:00:06.1]} 39... Rb5+ {[%clk 0:00:31.6]} 40. Kc4 {[%clk 0:00:05.3]}
40... Ra5 {[%clk 0:00:30.8]} 41. Kb3 {[%clk 0:00:04.2]} 41... Nc6 {[%clk
0:00:26.9]} 42. a4 {[%clk 0:00:04.3]} 42... Rc5 {[%clk 0:00:24.3]} 43. Rc3
{[%clk 0:00:04.4]} 43... Rxc3+ {[%clk 0:00:19.5]} 44. Kxc3 {[%clk 0:00:05.3]}
44... Ne5 {[%clk 0:00:19.7]} 45. Kb4 {[%clk 0:00:03.2]} 45... Nxf3 {[%clk
0:00:19.4]} 46. Ka5 {[%clk 0:00:03.5]} 46... Nxg5 {[%clk 0:00:19.4]} 47. Kxa6
{[%clk 0:00:03.7]} 47... h4 {[%clk 0:00:18.8]} 48. Kb5 {[%clk 0:00:03.7]} 48...
e5 {[%clk 0:00:19.1]} 49. Ng2 {[%clk 0:00:03.1]} 49... h3 {[%clk 0:00:18.9]} 50.
Rg1 {[%clk 0:00:02.7]} 50... hxg2 {[%clk 0:00:18.5]} 51. Rxg2 {[%clk 0:00:03.6]}
51... Ne6 {[%clk 0:00:17.8]} 52. a5 {[%clk 0:00:03.4]} 52... Nfd4+ {[%clk
0:00:18]} 53. Kb6 {[%clk 0:00:03.1]} 53... Nd8 {[%clk 0:00:14.9]} 54. a6 {[%clk
0:00:03.4]} 54... N8c6 {[%clk 0:00:15]} 55. a7 {[%clk 0:00:03.7]} 55... Nxa7
{[%clk 0:00:14.8]} 56. Kxa7 {[%clk 0:00:04.6]} 56... f5 {[%clk 0:00:15.1]} 57.
Kb6 {[%clk 0:00:05.2]} 57... Kf6 {[%clk 0:00:15.4]} 58. Kc5 {[%clk 0:00:05.7]}
58... Nf3 {[%clk 0:00:15.2]} 59. Kd5 {[%clk 0:00:05.8]} 59... g5 {[%clk
0:00:14.9]} 60. Ra2 {[%clk 0:00:05.4]} 60... g4 {[%clk 0:00:15.2]} 61. Ra6+
{[%clk 0:00:05.4]} 61... Kg5 {[%clk 0:00:15.7]} 62. Kc4 {[%clk 0:00:05.2]} 62...
g3 {[%clk 0:00:15.6]} 63. Kd3 {[%clk 0:00:05.6]} 63... g2 {[%clk 0:00:15.5]} 64.
Ke3 {[%clk 0:00:06]} 64... g1=Q+ {[%clk 0:00:15.7]} 65. Kxf3 {[%clk 0:00:06.7]}
65... Qd4 {[%clk 0:00:15.4]} 66. Ra3 {[%clk 0:00:05.8]} 66... e4+ {[%clk
0:00:15]} 67. Kg2 {[%clk 0:00:05.6]} 67... Qd2+ {[%clk 0:00:13.7]} 68. Kh3
{[%clk 0:00:05.2]} 68... Kf4 {[%clk 0:00:11.5]} 69. Ra8 {[%clk 0:00:04.7]} 69...
Qe3+ {[%clk 0:00:10.8]} 70. Kh2 {[%clk 0:00:04.9]} 70... Qf2+ {[%clk 0:00:10.7]}
71. Kh1 {[%clk 0:00:05]} 71... Qf3+ {[%clk 0:00:10.2]} 72. Kh2 {[%clk
0:00:04.7]} 72... e3 {[%clk 0:00:09]} 73. Ra4+ {[%clk 0:00:04.3]} 73... Qe4
{[%clk 0:00:09.3]} 74. Rxe4+ {[%clk 0:00:02.9]} 74... Kxe4 {[%clk 0:00:10.2]}
75. Kg2 {[%clk 0:00:03.4]} 75... Kd3 {[%clk 0:00:10.6]} 76. Kf1 {[%clk
0:00:04.1]} 76... Kd2 {[%clk 0:00:11.1]} 77. Kg2 {[%clk 0:00:04]} 77... e2
{[%clk 0:00:11.5]} 0-1

[Event "Betsys MČR v online bleskovém šachu 2021"]
[Site "Chess.com"]
[Date "2021.04.17"]
[Round "5"]
[White "fm_magua"]
[Black "Lunaticx"]
[Result "1/2-1/2"]
[WhiteElo "2522"]
[BlackElo "2991"]
[TimeControl "180+1"]
[EndTime "9:49:49 PDT"]
[Termination "Remíza podle pravidla o 50 tazích"]

1. e4 {[%clk 0:02:57.8]} 1... c5 {[%clk 0:02:56.4]} 2. Nf3 {[%clk 0:02:57.6]}
2... d6 {[%clk 0:02:56.9]} 3. d4 {[%clk 0:02:56.9]} 3... cxd4 {[%clk 0:02:57.2]}
4. Nxd4 {[%clk 0:02:57.6]} 4... Nf6 {[%clk 0:02:57.7]} 5. Nc3 {[%clk 0:02:57.9]}
5... a6 {[%clk 0:02:58.3]} 6. Bc4 {[%clk 0:02:58.3]} 6... e6 {[%clk 0:02:55.9]}
7. Bb3 {[%clk 0:02:58.6]} 7... Nc6 {[%clk 0:02:55.9]} 8. O-O {[%clk 0:02:59.1]}
8... Be7 {[%clk 0:02:54.7]} 9. Be3 {[%clk 0:02:59.7]} 9... O-O {[%clk
0:02:54.5]} 10. f4 {[%clk 0:02:59.6]} 10... Qc7 {[%clk 0:02:54.5]} 11. f5 {[%clk
0:02:59.4]} 11... Nxd4 {[%clk 0:02:36.4]} 12. Qxd4 {[%clk 0:02:59.2]} 12... Bd7
{[%clk 0:02:32.8]} 13. Bg5 {[%clk 0:02:58.5]} 13... h6 {[%clk 0:02:26.8]} 14.
Bh4 {[%clk 0:02:57.8]} 14... Rad8 {[%clk 0:02:23.1]} 15. Kh1 {[%clk 0:02:50.5]}
15... b5 {[%clk 0:02:19.3]} 16. Rad1 {[%clk 0:02:28]} 16... a5 {[%clk
0:02:17.6]} 17. a4 {[%clk 0:02:18.8]} 17... bxa4 {[%clk 0:02:08.2]} 18. Nxa4
{[%clk 0:02:15.7]} 18... e5 {[%clk 0:02:04.3]} 19. Qd3 {[%clk 0:02:14.4]} 19...
Bxa4 {[%clk 0:01:54.7]} 20. Bxa4 {[%clk 0:02:05]} 20... d5 {[%clk 0:01:43.7]}
21. Bxf6 {[%clk 0:01:59.4]} 21... dxe4 {[%clk 0:01:42.2]} 22. Qxe4 {[%clk
0:01:51.7]} 22... Bxf6 {[%clk 0:01:41.9]} 23. Bb3 {[%clk 0:01:41.9]} 23... Qc5
{[%clk 0:01:32.9]} 24. Rd5 {[%clk 0:01:14]} 24... Rxd5 {[%clk 0:01:31.5]} 25.
Qxd5 {[%clk 0:01:14.3]} 25... Qxd5 {[%clk 0:01:28.1]} 26. Bxd5 {[%clk
0:01:14.4]} 26... e4 {[%clk 0:01:28.4]} 27. Bxe4 {[%clk 0:01:10.1]} 27... Bxb2
{[%clk 0:01:27.8]} 28. Rb1 {[%clk 0:01:09.9]} 28... Bc3 {[%clk 0:01:16]} 29. Rb3
{[%clk 0:01:01.3]} 29... Rc8 {[%clk 0:01:06.2]} 30. Kg1 {[%clk 0:00:52.8]} 30...
a4 {[%clk 0:00:52.7]} 31. Ra3 {[%clk 0:00:37]} 31... Rc4 {[%clk 0:00:42.2]} 32.
Bd3 {[%clk 0:00:37.1]} 32... Bb2 {[%clk 0:00:19.8]} 33. Bxc4 {[%clk 0:00:27.8]}
33... Bxa3 {[%clk 0:00:19.7]} 34. Kf1 {[%clk 0:00:28.2]} 34... Bc5 {[%clk
0:00:19.5]} 35. Ke2 {[%clk 0:00:28.4]} 35... Kf8 {[%clk 0:00:19.5]} 36. Kd3
{[%clk 0:00:28]} 36... Ke7 {[%clk 0:00:20]} 37. h3 {[%clk 0:00:27.4]} 37... a3
{[%clk 0:00:20.1]} 38. Ke4 {[%clk 0:00:26.6]} 38... Bf2 {[%clk 0:00:15.5]} 39.
Kd5 {[%clk 0:00:23.9]} 39... Bg3 {[%clk 0:00:15.6]} 40. Ba2 {[%clk 0:00:22.9]}
40... Kf6 {[%clk 0:00:16.1]} 41. Ke4 {[%clk 0:00:23.1]} 41... h5 {[%clk
0:00:16.6]} 42. Bb3 {[%clk 0:00:22.6]} 42... h4 {[%clk 0:00:16.8]} 43. Ba2
{[%clk 0:00:21.7]} 43... Bc7 {[%clk 0:00:17.4]} 44. Bb3 {[%clk 0:00:21.4]} 44...
Bb8 {[%clk 0:00:17.6]} 45. Ba2 {[%clk 0:00:21.7]} 45... Ke7 {[%clk 0:00:16.6]}
46. Kd5 {[%clk 0:00:20.7]} 46... Bc7 {[%clk 0:00:15]} 47. Bb3 {[%clk 0:00:20.5]}
47... Bg3 {[%clk 0:00:15.9]} 48. Ba2 {[%clk 0:00:20.6]} 48... Kd7 {[%clk
0:00:16.3]} 49. Bb3 {[%clk 0:00:20.4]} 49... Kc7 {[%clk 0:00:16.7]} 50. Kc5
{[%clk 0:00:20.7]} 50... Bf2+ {[%clk 0:00:15.6]} 51. Kd5 {[%clk 0:00:18.2]}
51... f6 {[%clk 0:00:15.2]} 52. Ba2 {[%clk 0:00:17.1]} 52... Kb6 {[%clk
0:00:15.4]} 53. Ke6 {[%clk 0:00:16.8]} 53... Be3 {[%clk 0:00:13.6]} 54. Kd5
{[%clk 0:00:16.8]} 54... Kb5 {[%clk 0:00:13.4]} 55. Ke4 {[%clk 0:00:16.7]} 55...
Bg5 {[%clk 0:00:12.9]} 56. Kd5 {[%clk 0:00:16.9]} 56... Be3 {[%clk 0:00:12.1]}
57. Ke4 {[%clk 0:00:17]} 57... Bf2 {[%clk 0:00:12.4]} 58. Kd3 {[%clk 0:00:15]}
58... Be1 {[%clk 0:00:11.3]} 59. Bb3 {[%clk 0:00:14.9]} 59... Kb4 {[%clk
0:00:11.7]} 60. Ba2 {[%clk 0:00:14.8]} 60... Bc3 {[%clk 0:00:12]} 61. Bb3 {[%clk
0:00:15]} 61... Be5 {[%clk 0:00:12.9]} 62. Ba2 {[%clk 0:00:15.1]} 62... Kc5
{[%clk 0:00:13.6]} 63. Bb3 {[%clk 0:00:14.1]} 63... Bb2 {[%clk 0:00:14.5]} 64.
Ba2 {[%clk 0:00:14.1]} 64... Kd6 {[%clk 0:00:15]} 65. Ke4 {[%clk 0:00:14.5]}
65... Kc6 {[%clk 0:00:15.4]} 66. Bb3 {[%clk 0:00:13.9]} 66... Kc5 {[%clk
0:00:16.3]} 67. Ba2 {[%clk 0:00:13.4]} 67... Be5 {[%clk 0:00:15.4]} 68. Bb3
{[%clk 0:00:13.2]} 68... Bb8 {[%clk 0:00:15.7]} 69. Ba2 {[%clk 0:00:13]} 69...
Kd6 {[%clk 0:00:15.9]} 70. Bb3 {[%clk 0:00:13]} 70... Ba7 {[%clk 0:00:16.4]} 71.
Ba2 {[%clk 0:00:13.3]} 71... Kc6 {[%clk 0:00:16.9]} 72. Bb3 {[%clk 0:00:13.5]}
72... Kc5 {[%clk 0:00:17.6]} 73. Ba2 {[%clk 0:00:13]} 73... Kb4 {[%clk
0:00:17.6]} 74. Kd3 {[%clk 0:00:13.3]} 74... Bf2 {[%clk 0:00:17.5]} 75. Bb3
{[%clk 0:00:13.3]} 75... Bg1 {[%clk 0:00:17.8]} 76. Ba2 {[%clk 0:00:13.6]} 76...
Kb5 {[%clk 0:00:18.2]} 77. Bb3 {[%clk 0:00:13.7]} 77... Kc6 {[%clk 0:00:18.8]}
78. Ba2 {[%clk 0:00:13.6]} 78... Kd6 {[%clk 0:00:19.7]} 79. Ke4 {[%clk 0:00:14]}
79... Bh2 {[%clk 0:00:19.4]} 80. Bb3 {[%clk 0:00:14.4]} 80... Be5 {[%clk
0:00:19.4]} 81. Ba2 {[%clk 0:00:14.6]} 81... Kc5 {[%clk 0:00:17.6]} 82. Bb3
{[%clk 0:00:14]} 82... Kb4 {[%clk 0:00:17.4]} 83. Kd3 {[%clk 0:00:14.3]} 83...
Bc7 {[%clk 0:00:17.3]} 84. Ba2 {[%clk 0:00:14.4]} 84... Kc5 {[%clk 0:00:17.5]}
85. Bb3 {[%clk 0:00:14.5]} 85... Kc6 {[%clk 0:00:17.9]} 86. Ba2 {[%clk
0:00:14.7]} 86... Kd6 {[%clk 0:00:18.4]} 87. Ke4 {[%clk 0:00:14.7]} 87... Kc5
{[%clk 0:00:17.5]} 88. Bb3 {[%clk 0:00:14.8]} 88... Be5 {[%clk 0:00:17]} 89. Ba2
{[%clk 0:00:14.7]} 89... Kb5 {[%clk 0:00:17.5]} 90. Bb3 {[%clk 0:00:15]} 90...
Kb4 {[%clk 0:00:18]} 91. Kd3 {[%clk 0:00:15.2]} 91... Kc5 {[%clk 0:00:18.5]} 92.
Ba2 {[%clk 0:00:15.3]} 92... Bb2 {[%clk 0:00:19.2]} 93. Bb3 {[%clk 0:00:15.6]}
93... Bc1 {[%clk 0:00:19.6]} 94. Ba2 {[%clk 0:00:15.7]} 94... Kd6 {[%clk
0:00:19.4]} 95. Ke4 {[%clk 0:00:15.8]} 95... Ke7 {[%clk 0:00:19]} 96. Bb3 {[%clk
0:00:16]} 96... Bb2 {[%clk 0:00:19.2]} 97. Ba2 {[%clk 0:00:16.3]} 97... Bc3
{[%clk 0:00:19.7]} 98. Bb3 {[%clk 0:00:16.8]} 98... Bb4 {[%clk 0:00:19.6]} 99.
Ba2 {[%clk 0:00:17.1]} 99... Bd2 {[%clk 0:00:18.4]} 100. Bb3 {[%clk 0:00:17.6]}
100... Bh6 {[%clk 0:00:18.6]} 101. Ba2 {[%clk 0:00:17.9]} 101... Kd6 {[%clk
0:00:17.7]} 1/2-1/2